[Event "POL-chT 1st League 2020"]
[Site "Ustron"]
[Date "2020.09.08"]
[Round "4.11"]
[White "Tomaszewski, Kacper"]
[Black "Kucza, Karol"]
[Result "1/2-1/2"]
[ECO "D44"]
[WhiteElo "2341"]
[BlackElo "2285"]
[Annotator "ChessBase"]
[PlyCount "121"]
[EventDate "2020.09.05"]
[EventType "team-tourn"]
[EventCountry "POL"]
[SourceTitle "playchess.com"]
[Source "ChessBase"]
[SourceQuality "1"]
[TimeControl "40/5400+30:1800+30"]

1. d4 {[%emt 0:00:00]} d5 {[%emt 0:00:00]} 2. c4 {[%emt 0:00:00]} e6 {[%emt 0:00:00]} 3. Nc3 {[%emt 0:00:00]} c6 {[%emt 0:00:00]} 4. Nf3 {[%emt 0:00:00]} Nf6 {[%emt 0:00:00]} 5. Bg5 {[%emt 0:00:01]} dxc4 {[%emt 0:00:00]} 6. a4 {[%emt 0:00:08]} Bb4 {[%emt 0:16:50]} 7. e4 {[%emt 0:00:39]} h6 {[%emt 0:12:00]} 8. Bxf6 {[%emt 0:01:15]} Qxf6 {[%emt 0:00:21]} 9. Bxc4 {[%emt 0:00:24]} Nd7 {[%emt 0:00:49]} 10. O-O {[%emt 0:00:32]} O-O {[%emt 0:07:13]} 11. e5 {[%emt 0:02:42]} Qe7 {[%emt 0:06:44]} 12. Qe2 {[%emt 0:00:30]} b6 {[%emt 0:07:15]} 13. Qe4 {[%emt 0:08:28]} Bb7 {[%emt 0:00:16]} 14. Bd3 {[%emt 0:00:08]} f5 {[%emt 0:05:10]} 15. exf6 {[%emt 0:00:33]} Nxf6 {[%emt 0:00:05]} 16. Qh4 {[%emt 0:05:50]} Nd5 {[%emt 0:12:30]} 17. Qxe7 {[%emt 0:00:40]} Bxe7 {[%emt 0:00:15]} 18. Bc4 {[%emt 0:17:28]} Bf6 {[%emt 0:05:35]} 19. Rfe1 {[%emt 0:08:23]} Rfe8 {[%emt 0:01:30]} 20. Ne4 {[%emt 0:01:56]} Rad8 {[%emt 0:00:09]} 21. a5 {[%emt 0:03:37]} b5 {[%emt 0:11:00]} 22. Bb3 {[%emt 0:01:51]} Nf4 {[%emt 0:01:03]} 23. Nc5 {[%emt 0:00:48]} Bc8 {[%emt 0:00:06]} 24. g3 {[%emt 0:02:44]} Nd5 {[%emt 0:00:09]} 25. Rad1 {[%emt 0:06:26]} Nc7 {[%emt 0:01:06]} 26. Re4 {[%emt 0:01:21]} Rd6 {[%emt 0:02:18]} 27. Rde1 {[%emt 0:00:59]} Red8 {[%emt 0:00:26]} 28. Nxe6 {[%emt 0:11:48]} Nxe6 {[%emt 0:00:14]} 29. Bxe6+ {[%emt 0:01:01]} Bxe6 {[%emt 0:00:07]} 30. Rxe6 {[%emt 0:00:03]} Rxe6 {[%emt 0:00:11]} 31. Rxe6 {[%emt 0:00:09]} Bxd4 {[%emt 0:00:04]} 32. Nxd4 {[%emt 0:00:18]} Rxd4 {[%emt 0:00:04]} 33. Rxc6 {[%emt 0:00:12]} Rd2 {[%emt 0:00:41]} 34. b4 {[%emt 0:02:01]} Rd4 {[%emt 0:00:11]} 35. Ra6 {[%emt 0:00:29]} Rxb4 {[%emt 0:00:05]} 36. Rxa7 {[%emt 0:00:04]} Ra4 {[%emt 0:00:05]} 37. a6 {[%emt 0:02:15]} b4 {[%emt 0:00:17]} 38. Rb7 {[%emt 0:00:26]} Rxa6 {[%emt 0:00:05]} 39. Rxb4 {[%emt 0:00:04]} Ra7 {[%emt 0:00:06]} 40. Kg2 {[%emt 0:00:00]} Kh7 {[%emt 0:00:00]} 41. Kf3 {[%emt 0:00:12]} Rf7+ {[%emt 0:00:13]} 42. Rf4 {[%emt 0:00:07]} Ra7 {[%emt 0:00:04]} 43. Rf8 {[%emt 0:00:06]} Kg6 {[%emt 0:00:15]} 44. Kg4 {[%emt 0:00:13]} Ra2 {[%emt 0:00:11]} 45. h3 {[%emt 0:02:26]} Ra3 {[%emt 0:00:41]} 46. f4 {[%emt 0:11:21]} Ra4 {[%emt 0:00:20]} 47. Kh4 {[%emt 0:00:20]} Rb4 {[%emt 0:00:17]} 48. g4 {[%emt 0:05:57]} Rb3 {[%emt 0:02:12]} 49. f5+ {[%emt 0:05:53]} Kh7 {[%emt 0:00:05]} 50. Rf7 {[%emt 0:00:25]} Ra3 {[%emt 0:00:17]} 51. Rb7 {[%emt 0:01:19]} Ra6 {[%emt 0:03:40]} 52. Re7 {[%emt 0:02:17]} Rb6 {[%emt 0:00:50]} 53. Kh5 {[%emt 0:01:21]} Ra6 {[%emt 0:00:40]} 54. h4 {[%emt 0:09:25]} Ra5 {[%emt 0:00:43]} 55. Rf7 {[%emt 0:00:59]} Rb5 {[%emt 0:00:35]} 56. g5 {[%emt 0:03:32]} Rxf5 {[%emt 0:01:15]} 57. Rxf5 {[%emt 0:00:26]} g6+ {[%emt 0:00:07]} 58. Kg4 {[%emt 0:00:07]} gxf5+ {[%emt 0:00:07]} 59. Kxf5 {[%emt 0:00:07]} hxg5 {[%emt 0:00:06]} 60. hxg5 {[%emt 0:00:04]} Kg7 {[%emt 0:00:08]} 61. Ke4 1/2-1/2

[Event "POL-chT 1st League 2020"]
[Site "Ustron"]
[Date "2020.09.08"]
[Round "4.12"]
[White "Czerwinska, Milena"]
[Black "Kucharska, Honorata"]
[Result "0-1"]
[ECO "A08"]
[WhiteElo "2010"]
[BlackElo "2237"]
[Annotator "ChessBase"]
[PlyCount "102"]
[EventDate "2020.09.05"]
[EventType "team-tourn"]
[EventCountry "POL"]
[SourceTitle "playchess.com"]
[Source "ChessBase"]
[SourceQuality "1"]
[TimeControl "40/5400+30:1800+30"]

1. e4 {[%emt 0:00:00]} e6 {[%emt 0:00:00]} 2. d3 {[%emt 0:00:00]} d5 {[%emt 0:00:17]} 3. Nd2 {[%emt 0:00:03]} c5 {[%emt 0:01:32]} 4. Ngf3 {[%emt 0:00:26]} Nc6 {[%emt 0:01:14]} 5. g3 {[%emt 0:00:11]} Nf6 {[%emt 0:02:47]} 6. Bg2 {[%emt 0:00:26]} Be7 {[%emt 0:03:43]} 7. O-O {[%emt 0:00:12]} O-O {[%emt 0:02:34]} 8. Re1 {[%emt 0:00:44]} b5 {[%emt 0:00:20]} 9. exd5 {[%emt 0:06:46]} exd5 {[%emt 0:02:00]} 10. d4 {[%emt 0:09:26]} c4 {[%emt 0:05:36]} 11. c3 {[%emt 0:09:11]} Bf5 {[%emt 0:02:00]} 12. Ne5 {[%emt 0:03:07]} Nxe5 {[%emt 0:02:14]} 13. Rxe5 {[%emt 0:09:49]} Bg6 {[%emt 0:00:29]} 14. Re1 {[%emt 0:03:56]} a5 {[%emt 0:03:25]} 15. a3 {[%emt 0:07:50]} Bd6 {[%emt 0:02:53]} 16. Nf1 {[%emt 0:05:15]} Ne4 {[%emt 0:03:21]} 17. f3 {[%emt 0:02:04]} Nf6 {[%emt 0:00:47]} 18. Bg5 {[%emt 0:01:49]} Be7 {[%emt 0:18:24]} 19. Ne3 {[%emt 0:04:12]} Re8 {[%emt 0:04:38]} 20. Bxf6 {[%emt 0:02:49]} Bxf6 {[%emt 0:00:06]} 21. Ng4 {[%emt 0:01:36]} Qd6 {[%emt 0:02:15]} 22. Nxf6+ {[%emt 0:03:35]} Qxf6 {[%emt 0:00:58]} 23. Qd2 {[%emt 0:00:58]} h5 {[%emt 0:02:37]} 24. Rxe8+ {[%emt 0:11:15]} Rxe8 {[%emt 0:00:11]} 25. Re1 {[%emt 0:00:03]} Rxe1+ {[%emt 0:03:25]} 26. Qxe1 {[%emt 0:00:04]} b4 {[%emt 0:02:36]} 27. axb4 {[%emt 0:00:11]} axb4 {[%emt 0:00:06]} 28. f4 {[%emt 0:00:52]} Qf5 {[%emt 0:02:14]} 29. cxb4 {[%emt 0:00:58]} Qd3 {[%emt 0:01:14]} 30. Qc3 {[%emt 0:08:02]} Qd1+ {[%emt 0:04:06]} 31. Kf2 {[%emt 0:00:03]} Bd3 {[%emt 0:00:31]} 32. h4 {[%emt 0:01:54]} Qe2+ {[%emt 0:01:36]} 33. Kg1 {[%emt 0:00:07]} Qe3+ {[%emt 0:01:28]} 34. Kh2 {[%emt 0:00:34]} Qf2 {[%emt 0:00:32]} 35. Kh1 {[%emt 0:02:58]} Qxg3 {[%emt 0:00:38]} 36. b5 {[%emt 0:01:50]} Qxh4+ {[%emt 0:05:41]} 37. Kg1 {[%emt 0:00:07]} Qf6 {[%emt 0:04:47]} 38. Bxd5 {[%emt 0:02:20]} Qxf4 {[%emt 0:03:47]} 39. b6 {[%emt 0:02:57]} Qg5+ {[%emt 0:00:23]} 40. Bg2 {[%emt 0:00:00]} Be4 {[%emt 0:00:00]} 41. Qh3 {[%emt 0:00:34]} Qc1+ {[%emt 0:01:22]} 42. Bf1 {[%emt 0:04:03]} Qxb2 {[%emt 0:03:57]} 43. Qc8+ {[%emt 0:07:04]} Kh7 {[%emt 0:00:25]} 44. Qxc4 {[%emt 0:00:46]} Qxb6 {[%emt 0:00:26]} 45. Kf2 {[%emt 0:01:31]} Qf6+ {[%emt 0:01:39]} 46. Ke1 {[%emt 0:01:13]} Qf5 {[%emt 0:01:59]} 47. Qc3 {[%emt 0:05:55]} g6 {[%emt 0:01:22]} 48. Qe3 {[%emt 0:02:06]} Kg7 {[%emt 0:01:19]} 49. Bc4 {[%emt 0:01:36]} Bd5 {[%emt 0:00:57]} 50. Bd3 {[%emt 0:00:16]} Qe6 {[%emt 0:00:27]} 51. Kf2 {[%emt 0:00:18]} Qxe3+ {[%emt 0:00:19]} 0-1

[Event "POL-chT 1st League 2020"]
[Site "Ustron"]
[Date "2020.09.08"]
[Round "4.18"]
[White "Przezdziecka, Ewa"]
[Black "Starosta, Martyna"]
[Result "1-0"]
[ECO "E83"]
[WhiteElo "2166"]
[BlackElo "2038"]
[Annotator "ChessBase"]
[PlyCount "69"]
[EventDate "2020.09.05"]
[EventType "team-tourn"]
[EventCountry "POL"]
[SourceTitle "playchess.com"]
[Source "ChessBase"]
[SourceQuality "1"]
[TimeControl "40/5400+30:1800+30"]

1. d4 {[%emt 0:00:00]} Nf6 {[%emt 0:00:00]} 2. c4 {[%emt 0:00:00]} g6 {[%emt 0:00:00]} 3. Nc3 {[%emt 0:00:00]} Bg7 {[%emt 0:00:36]} 4. e4 {[%emt 0:00:10]} d6 {[%emt 0:00:10]} 5. f3 {[%emt 0:00:07]} O-O {[%emt 0:05:07]} 6. Be3 {[%emt 0:00:27]} Nc6 {[%emt 0:00:49]} 7. Qd2 {[%emt 0:01:20]} a6 {[%emt 0:00:19]} 8. Bd3 {[%emt 0:03:41]} Nd7 {[%emt 0:09:24]} 9. Nge2 {[%emt 0:03:48]} e5 {[%emt 0:06:57]} 10. d5 {[%emt 0:07:27]} Nb4 {[%emt 0:03:48]} 11. Bb1 {[%emt 0:07:16]} a5 {[%emt 0:00:15]} 12. h4 {[%emt 0:25:36]} f5 {[%emt 0:06:59]} 13. Bg5 {[%emt 0:05:38]} Bf6 {[%emt 0:11:15]} 14. exf5 {[%emt 0:08:26]} gxf5 {[%emt 0:11:08]} 15. Bxf5 {[%emt 0:08:33]} Nb6 {[%emt 0:11:48]} 16. Bxc8 {[%emt 0:07:19]} Nxc4 {[%emt 0:13:29]} 17. Bxf6 {[%emt 0:04:20]} Qxf6 {[%emt 0:01:59]} 18. Qg5+ {[%emt 0:05:44]} Qxg5 {[%emt 0:02:06]} 19. Be6+ {[%emt 0:00:19]} Kg7 {[%emt 0:00:43]} 20. hxg5 {[%emt 0:00:06]} Nc2+ {[%emt 0:00:29]} 21. Kf2 {[%emt 0:03:01]} Nxa1 {[%emt 0:00:27]} 22. Rxa1 {[%emt 0:01:08]} Nxb2 {[%emt 0:02:33]} 23. Nb5 {[%emt 0:03:20]} a4 {[%emt 0:02:16]} 24. Nxc7 {[%emt 0:02:14]} Ra5 {[%emt 0:00:28]} 25. Bg4 {[%emt 0:00:30]} Kh8 {[%emt 0:02:25]} 26. Rh1 {[%emt 0:01:01]} Rf7 {[%emt 0:02:15]} 27. Ne6 {[%emt 0:00:39]} Kg8 {[%emt 0:02:34]} 28. Nc3 {[%emt 0:00:26]} Nd3+ {[%emt 0:00:39]} 29. Ke3 {[%emt 0:00:15]} Nf4 {[%emt 0:00:28]} 30. g3 {[%emt 0:00:53]} Nxd5+ {[%emt 0:02:46]} 31. Nxd5 {[%emt 0:00:05]} Rxd5 {[%emt 0:00:04]} 32. Rc1 {[%emt 0:00:38]} Re7 {[%emt 0:00:48]} 33. Rc8+ {[%emt 0:00:25]} Kf7 {[%emt 0:00:49]} 34. Rf8+ {[%emt 0:00:06]} Kg6 {[%emt 0:00:05]} 35. Rf6# {[%emt 0:00:05]} 1-0

[Event "POL-chT 1st League 2020"]
[Site "Ustron"]
[Date "2020.09.08"]
[Round "4.21"]
[White "Kozak, Antoni"]
[Black "Budrewicz, Krzysztof"]
[Result "0-1"]
[ECO "E90"]
[WhiteElo "2347"]
[BlackElo "2227"]
[Annotator "ChessBase"]
[PlyCount "112"]
[EventDate "2020.09.05"]
[EventType "team-tourn"]
[EventCountry "POL"]
[SourceTitle "playchess.com"]
[Source "ChessBase"]
[SourceQuality "1"]
[TimeControl "40/5400+30:1800+30"]

1. d4 {[%emt 0:00:00]} Nf6 {[%emt 0:00:29]} 2. c4 {[%emt 0:00:00]} g6 {[%emt 0:00:17]} 3. Nc3 {[%emt 0:00:00]} Bg7 {[%emt 0:00:16]} 4. e4 {[%emt 0:00:04]} d6 {[%emt 0:00:14]} 5. Nf3 {[%emt 0:00:05]} O-O {[%emt 0:00:28]} 6. h3 {[%emt 0:00:04]} c5 {[%emt 0:02:46]} 7. d5 {[%emt 0:00:26]} a6 {[%emt 0:00:26]} 8. a4 {[%emt 0:09:04]} e6 {[%emt 0:00:40]} 9. Bd3 {[%emt 0:00:05]} Nbd7 {[%emt 0:01:39]} 10. Be3 {[%emt 0:01:38]} e5 {[%emt 0:10:10]} 11. g4 {[%emt 0:00:33]} Kh8 {[%emt 0:02:54]} 12. Nd2 {[%emt 0:02:38]} Ng8 {[%emt 0:00:26]} 13. h4 {[%emt 0:01:05]} Ndf6 {[%emt 0:04:40]} 14. Be2 {[%emt 0:01:19]} Ne8 {[%emt 0:01:20]} 15. Nf1 {[%emt 0:18:19]} f5 {[%emt 0:05:46]} 16. h5 {[%emt 0:01:28]} f4 {[%emt 0:04:00]} 17. hxg6 {[%emt 0:00:05]} Ne7 {[%emt 0:02:18]} 18. Rxh7+ {[%emt 0:07:59]} Kg8 {[%emt 0:00:04]} 19. Bc1 {[%emt 0:00:04]} Nxg6 {[%emt 0:01:25]} 20. Rh3 {[%emt 0:02:48]} Nf6 {[%emt 0:03:06]} 21. f3 {[%emt 0:09:02]} Bd7 {[%emt 0:04:17]} 22. a5 {[%emt 0:07:27]} b6 {[%emt 0:00:34]} 23. axb6 {[%emt 0:00:07]} Qxb6 {[%emt 0:00:07]} 24. Ra3 {[%emt 0:01:27]} Nh8 {[%emt 0:02:06]} 25. Qd3 {[%emt 0:05:08]} Nf7 {[%emt 0:00:50]} 26. Bd1 {[%emt 0:00:02]} Ng5 {[%emt 0:00:26]} 27. Rh2 {[%emt 0:00:05]} Kf7 {[%emt 0:09:30]} 28. b3 {[%emt 0:00:07]} Rg8 {[%emt 0:10:09]} 29. Raa2 {[%emt 0:01:05]} Bf8 {[%emt 0:00:22]} 30. Kd2 {[%emt 0:07:30]} Be7 {[%emt 0:00:19]} 31. Kc2 {[%emt 0:00:06]} Rab8 {[%emt 0:02:02]} 32. Kb1 {[%emt 0:00:37]} Rh8 {[%emt 0:00:27]} 33. Rxh8 {[%emt 0:00:25]} Rxh8 {[%emt 0:00:06]} 34. Rh2 {[%emt 0:00:03]} Rxh2 {[%emt 0:05:13]} 35. Nxh2 {[%emt 0:00:06]} Qb8 {[%emt 0:00:12]} 36. Qe2 {[%emt 0:06:41]} Qh8 {[%emt 0:01:31]} 37. Qg2 {[%emt 0:02:19]} Bd8 {[%emt 0:00:11]} 38. Bd2 {[%emt 0:14:47]} Ba5 {[%emt 0:01:42]} 39. Be1 {[%emt 0:00:16]} Bb4 {[%emt 0:04:02]} 40. Nf1 {[%emt 0:00:00]} Kg6 {[%emt 0:00:00]} 41. Kc2 {[%emt 0:08:15]} a5 {[%emt 0:10:28]} 42. Kd3 {[%emt 0:00:34]} Qb8 {[%emt 0:09:09]} 43. Qh2 {[%emt 0:01:50]} a4 {[%emt 0:02:17]} 44. bxa4 {[%emt 0:12:09]} Bxc3 {[%emt 0:00:56]} 45. Bxc3 {[%emt 0:00:04]} Bxa4 {[%emt 0:00:26]} 46. Bxa4 {[%emt 0:07:34]} Qb1+ {[%emt 0:00:08]} 47. Ke2 {[%emt 0:00:06]} Nxf3 {[%emt 0:11:12]} 48. Nd2 {[%emt 0:01:43]} Ng1+ {[%emt 0:06:28]} 49. Kf2 {[%emt 0:00:40]} Nxg4+ {[%emt 0:00:14]} 50. Kg2 {[%emt 0:00:03]} Qe1 {[%emt 0:01:23]} 51. Qxg1 {[%emt 0:04:49]} Qg3+ {[%emt 0:00:06]} 52. Kf1 {[%emt 0:00:02]} Ne3+ {[%emt 0:00:10]} 53. Qxe3 {[%emt 0:00:02]} fxe3 {[%emt 0:00:27]} 54. Ke2 {[%emt 0:00:04]} Qf2+ {[%emt 0:00:14]} 55. Kd3 {[%emt 0:00:04]} e2 {[%emt 0:00:56]} 56. Bb5 {[%emt 0:01:50]} e1=N# 0-1

[Event "POL-chT 1st League 2020"]
[Site "Ustron"]
[Date "2020.09.08"]
[Round "4.22"]
[White "Reza, Wojciech"]
[Black "Chyzy, Jakub"]
[Result "1-0"]
[ECO "E94"]
[WhiteElo "2273"]
[BlackElo "2249"]
[Annotator "ChessBase"]
[PlyCount "77"]
[EventDate "2020.09.05"]
[EventType "team-tourn"]
[EventCountry "POL"]
[SourceTitle "playchess.com"]
[Source "ChessBase"]
[SourceQuality "1"]
[TimeControl "40/5400+30:1800+30"]

1. d4 {[%emt 0:00:21]} Nf6 {[%emt 0:00:00]} 2. c4 {[%emt 0:00:08]} d6 {[%emt 0:00:00]} 3. Nf3 {[%emt 0:00:38]} Nbd7 {[%emt 0:00:00]} 4. Nc3 {[%emt 0:00:38]} e5 {[%emt 0:00:00]} 5. e4 {[%emt 0:00:39]} g6 {[%emt 0:00:06]} 6. Be2 {[%emt 0:00:51]} Bg7 {[%emt 0:00:23]} 7. O-O {[%emt 0:01:18]} O-O {[%emt 0:00:30]} 8. Be3 {[%emt 0:01:14]} c6 {[%emt 0:00:42]} 9. d5 {[%emt 0:02:26]} c5 {[%emt 0:00:38]} 10. Ne1 {[%emt 0:02:18]} Kh8 {[%emt 0:01:46]} 11. Nd3 {[%emt 0:22:31]} Ng8 {[%emt 0:01:54]} 12. b4 {[%emt 0:10:51]} b6 {[%emt 0:04:46]} 13. a4 {[%emt 0:23:06]} a5 {[%emt 0:08:24]} 14. bxa5 {[%emt 0:04:06]} bxa5 {[%emt 0:00:29]} 15. Nb5 {[%emt 0:03:13]} Ra6 {[%emt 0:07:07]} 16. Ra2 {[%emt 0:09:57]} f5 {[%emt 0:02:41]} 17. exf5 {[%emt 0:00:17]} gxf5 {[%emt 0:04:52]} 18. f4 {[%emt 0:00:26]} Re8 {[%emt 0:10:46]} 19. Bh5 {[%emt 0:07:14]} Re7 {[%emt 0:01:23]} 20. fxe5 {[%emt 0:04:04]} Nxe5 {[%emt 0:00:10]} 21. Bg5 {[%emt 0:02:33]} Bf6 {[%emt 0:11:01]} 22. Nxe5 {[%emt 0:00:42]} Rxe5 {[%emt 0:03:20]} 23. Bf4 {[%emt 0:00:41]} Re4 {[%emt 0:01:10]} 24. Re2 {[%emt 0:00:44]} Bg7 {[%emt 0:08:13]} 25. Rxe4 {[%emt 0:00:44]} fxe4 {[%emt 0:00:04]} 26. Bg4 {[%emt 0:00:28]} Bd7 {[%emt 0:00:29]} 27. Bxd7 {[%emt 0:00:41]} Qxd7 {[%emt 0:00:01]} 28. Qe1 {[%emt 0:00:37]} Qe7 {[%emt 0:00:47]} 29. Qg3 {[%emt 0:00:11]} Bd4+ {[%emt 0:02:38]} 30. Kh1 {[%emt 0:00:01]} e3 {[%emt 0:01:23]} 31. Re1 {[%emt 0:01:10]} Ra8 {[%emt 0:03:55]} 32. Bxd6 {[%emt 0:00:19]} Qg7 {[%emt 0:07:21]} 33. Nxd4 {[%emt 0:00:22]} cxd4 {[%emt 0:00:13]} 34. Be5 {[%emt 0:00:31]} Nf6 {[%emt 0:00:01]} 35. Bxd4 {[%emt 0:00:48]} Rc8 {[%emt 0:01:00]} 36. c5 {[%emt 0:00:25]} Rf8 {[%emt 0:02:21]} 37. Qxg7+ {[%emt 0:00:30]} Kxg7 {[%emt 0:00:02]} 38. Rxe3 {[%emt 0:00:12]} Rb8 {[%emt 0:00:31]} 39. h3 {[%emt 0:00:43]} 1-0

[Event "POL-chT 1st League 2020"]
[Site "Ustron"]
[Date "2020.09.08"]
[Round "4.23"]
[White "Czernek, Tymon"]
[Black "Renkowski, Piotr"]
[Result "1-0"]
[ECO "C11"]
[WhiteElo "2267"]
[BlackElo "2149"]
[Annotator "ChessBase"]
[PlyCount "79"]
[EventDate "2020.09.05"]
[EventType "team-tourn"]
[EventCountry "POL"]
[SourceTitle "playchess.com"]
[Source "ChessBase"]
[SourceQuality "1"]
[TimeControl "40/5400+30:1800+30"]

1. e4 {[%emt 0:00:00]} e6 {[%emt 0:00:00]} 2. d4 {[%emt 0:00:00]} d5 {[%emt 0:00:00]} 3. Nc3 {[%emt 0:00:00]} Nf6 {[%emt 0:00:00]} 4. e5 {[%emt 0:00:00]} Nfd7 {[%emt 0:00:00]} 5. f4 {[%emt 0:00:00]} c5 {[%emt 0:00:00]} 6. Nf3 {[%emt 0:00:00]} a6 {[%emt 0:00:00]} 7. Be3 {[%emt 0:01:25]} Qb6 {[%emt 0:00:00]} 8. Na4 {[%emt 0:17:58]} Qa5+ {[%emt 0:00:00]} 9. c3 {[%emt 0:00:05]} cxd4 {[%emt 0:00:04]} 10. b4 {[%emt 0:00:57]} Qc7 {[%emt 0:00:02]} 11. Bxd4 {[%emt 0:00:08]} Nc6 {[%emt 0:01:38]} 12. Be2 {[%emt 0:02:32]} Nxd4 {[%emt 0:05:36]} 13. Qxd4 {[%emt 0:00:02]} b5 {[%emt 0:09:59]} 14. Nb2 {[%emt 0:00:06]} Be7 {[%emt 0:06:53]} 15. Qd2 {[%emt 0:03:13]} O-O {[%emt 0:10:04]} 16. O-O {[%emt 0:00:08]} f6 {[%emt 0:15:41]} 17. Nd3 {[%emt 0:01:10]} Nb6 {[%emt 0:04:25]} 18. exf6 {[%emt 0:08:43]} gxf6 {[%emt 0:02:45]} 19. Nd4 {[%emt 0:03:15]} Bd7 {[%emt 0:14:06]} 20. Bg4 {[%emt 0:02:33]} e5 {[%emt 0:07:15]} 21. Bxd7 {[%emt 0:00:47]} Nxd7 {[%emt 0:00:21]} 22. fxe5 {[%emt 0:00:42]} fxe5 {[%emt 0:00:41]} 23. Nf5 {[%emt 0:00:06]} Qb6+ {[%emt 0:04:09]} 24. Kh1 {[%emt 0:00:25]} Qe6 {[%emt 0:00:03]} 25. g4 {[%emt 0:12:30]} Kh8 {[%emt 0:03:13]} 26. Rae1 {[%emt 0:00:37]} Bf6 {[%emt 0:03:12]} 27. Nf4 {[%emt 0:02:16]} Qg8 {[%emt 0:00:05]} 28. Nxd5 {[%emt 0:01:09]} Rad8 {[%emt 0:03:11]} 29. Qg2 {[%emt 0:01:37]} Bg5 {[%emt 0:02:04]} 30. h4 {[%emt 0:00:44]} Bf6 {[%emt 0:02:00]} 31. g5 {[%emt 0:01:24]} Bg7 {[%emt 0:00:17]} 32. h5 {[%emt 0:00:39]} e4 {[%emt 0:02:57]} 33. Qxe4 {[%emt 0:02:25]} Nc5 {[%emt 0:01:30]} 34. bxc5 Qxd5 {[%emt 0:00:00]} 35. Qxd5 {[%emt 0:08:51]} Rxd5 36. c6 {[%emt 0:00:31]} Rc5 {[%emt 0:01:42]} 37. Ne7 {[%emt 0:02:47]} Ra8 {[%emt 0:02:09]} 38. h6 {[%emt 0:01:20]} Bxc3 {[%emt 0:00:19]} 39. Re3 {[%emt 0:00:04]} Ba5 {[%emt 0:01:35]} 40. Ref3 {[%emt 0:00:00]} 1-0

[Event "POL-chT 1st League 2020"]
[Site "Ustron"]
[Date "2020.09.08"]
[Round "4.24"]
[White "Dwilewicz, Katarzyna"]
[Black "Wikar, Martyna"]
[Result "0-1"]
[ECO "B90"]
[WhiteElo "2134"]
[BlackElo "2045"]
[Annotator "ChessBase"]
[PlyCount "89"]
[EventDate "2020.09.05"]
[EventType "team-tourn"]
[EventCountry "POL"]
[SourceTitle "playchess.com"]
[Source "ChessBase"]
[SourceQuality "1"]
[TimeControl "40/5400+30:1800+30"]

1. e4 {[%emt 0:00:00]} c5 {[%emt 0:00:00]} 2. Nf3 {[%emt 0:00:00]} d6 {[%emt 0:00:00]} 3. d4 {[%emt 0:00:09]} cxd4 {[%emt 0:00:00]} 4. Nxd4 {[%emt 0:00:05]} Nf6 {[%emt 0:00:09]} 5. Nc3 {[%emt 0:00:06]} a6 {[%emt 0:00:06]} 6. h3 {[%emt 0:00:35]} e5 {[%emt 0:00:10]} 7. Nde2 {[%emt 0:00:28]} b5 {[%emt 0:00:12]} 8. g4 {[%emt 0:03:33]} Bb7 {[%emt 0:01:07]} 9. Bg2 {[%emt 0:00:26]} h6 {[%emt 0:01:22]} 10. Be3 {[%emt 0:05:58]} Nbd7 {[%emt 0:02:55]} 11. Ng3 {[%emt 0:02:50]} Rc8 {[%emt 0:02:22]} 12. O-O {[%emt 0:06:52]} Qc7 {[%emt 0:04:49]} 13. a3 {[%emt 0:02:48]} Nb6 {[%emt 0:04:11]} 14. Qe2 {[%emt 0:07:27]} Nc4 {[%emt 0:02:22]} 15. Bc1 {[%emt 0:00:15]} g6 {[%emt 0:03:40]} 16. f4 {[%emt 0:08:36]} exf4 {[%emt 0:07:25]} 17. Bxf4 {[%emt 0:19:28]} Bg7 {[%emt 0:02:13]} 18. e5 {[%emt 0:09:59]} dxe5 {[%emt 0:06:28]} 19. Bxb7 {[%emt 0:03:18]} Qxb7 {[%emt 0:00:25]} 20. Bxe5 {[%emt 0:00:15]} Nxe5 {[%emt 0:06:35]} 21. Qxe5+ {[%emt 0:00:02]} Qe7 {[%emt 0:00:10]} 22. Qxe7+ {[%emt 0:05:19]} Kxe7 {[%emt 0:00:03]} 23. Rfe1+ {[%emt 0:01:14]} Kd7 {[%emt 0:03:55]} 24. Rad1+ {[%emt 0:00:30]} Kc6 {[%emt 0:00:29]} 25. Kf2 {[%emt 0:08:54]} Rhe8 {[%emt 0:01:51]} 26. Kf3 {[%emt 0:08:40]} Nd7 {[%emt 0:02:45]} 27. Nge4 {[%emt 0:02:53]} Ne5+ {[%emt 0:01:12]} 28. Kf4 {[%emt 0:00:04]} Nc4 {[%emt 0:05:45]} 29. Nd5 {[%emt 0:01:57]} Be5+ {[%emt 0:03:03]} 30. Kf3 {[%emt 0:00:02]} a5 {[%emt 0:10:20]} 31. b4 {[%emt 0:00:20]} a4 {[%emt 0:01:09]} 32. Rd3 {[%emt 0:01:51]} Bb2 {[%emt 0:03:41]} 33. Kf2 {[%emt 0:00:54]} Bxa3 {[%emt 0:03:18]} 34. Ndf6 {[%emt 0:00:23]} Re6 {[%emt 0:04:23]} 35. Rb1 {[%emt 0:00:25]} Bb2 {[%emt 0:00:55]} 36. c3 {[%emt 0:00:52]} a3 {[%emt 0:00:35]} 37. Rdd1 {[%emt 0:00:29]} a2 {[%emt 0:02:02]} 38. Rxb2 {[%emt 0:00:05]} Nxb2 {[%emt 0:00:06]} 39. Ra1 {[%emt 0:00:02]} Ra8 {[%emt 0:00:36]} 40. Ke3 {[%emt 0:00:00]} Nc4+ {[%emt 0:00:00]} 41. Kd3 {[%emt 0:01:06]} Nd6 {[%emt 0:02:34]} 42. g5 {[%emt 0:00:08]} Nxe4 {[%emt 0:00:32]} 43. Nxe4 {[%emt 0:00:05]} Rd8+ {[%emt 0:00:15]} 44. Ke3 {[%emt 0:00:04]} Rde8 {[%emt 0:00:19]} 45. Kd4 0-1

[Event "POL-chT 1st League 2020"]
[Site "Ustron"]
[Date "2020.09.08"]
[Round "4.27"]
[White "Kokoszczynski, Jan"]
[Black "Olsen, Filip Boe"]
[Result "0-1"]
[ECO "E04"]
[WhiteElo "2231"]
[BlackElo "2351"]
[Annotator "ChessBase"]
[PlyCount "64"]
[EventDate "2020.09.05"]
[EventType "team-tourn"]
[EventCountry "POL"]
[SourceTitle "playchess.com"]
[Source "ChessBase"]
[SourceQuality "1"]
[TimeControl "40/5400+30:1800+30"]

1. d4 {[%emt 0:00:00]} Nf6 {[%emt 0:00:00]} 2. c4 {[%emt 0:00:00]} e6 {[%emt 0:00:00]} 3. Nf3 {[%emt 0:00:00]} d5 {[%emt 0:00:00]} 4. g3 {[%emt 0:00:00]} dxc4 {[%emt 0:00:17]} 5. Bg2 {[%emt 0:00:45]} Bb4+ {[%emt 0:00:41]} 6. Nbd2 {[%emt 0:01:34]} O-O {[%emt 0:02:36]} 7. O-O {[%emt 0:00:23]} b5 {[%emt 0:03:42]} 8. Ne1 {[%emt 0:03:53]} c6 {[%emt 0:03:37]} 9. Nc2 {[%emt 0:00:45]} Be7 {[%emt 0:00:50]} 10. a4 {[%emt 0:00:14]} Nd5 {[%emt 0:01:02]} 11. e4 {[%emt 0:00:56]} Nf6 {[%emt 0:01:11]} 12. e5 {[%emt 0:00:25]} Nd5 {[%emt 0:00:09]} 13. Ne4 {[%emt 0:00:09]} Nd7 {[%emt 0:03:50]} 14. Re1 {[%emt 0:06:52]} f5 {[%emt 0:15:09]} 15. exf6 {[%emt 0:02:23]} N7xf6 {[%emt 0:01:18]} 16. Qe2 {[%emt 0:22:32]} Nxe4 {[%emt 0:14:08]} 17. Bxe4 {[%emt 0:00:42]} Bf6 {[%emt 0:03:36]} 18. h4 {[%emt 0:07:02]} a6 {[%emt 0:06:16]} 19. Kg2 {[%emt 0:06:06]} Ra7 {[%emt 0:04:20]} 20. Bd2 {[%emt 0:18:09]} Raf7 {[%emt 0:03:58]} 21. f4 {[%emt 0:01:21]} c5 {[%emt 0:01:25]} 22. axb5 {[%emt 0:00:13]} axb5 {[%emt 0:00:49]} 23. Ba5 {[%emt 0:01:46]} Qd7 {[%emt 0:02:49]} 24. dxc5 {[%emt 0:01:02]} Bxb2 {[%emt 0:01:24]} 25. Rad1 Qa7 {[%emt 0:02:00]} 26. Bb4 {[%emt 0:06:42]} Nxb4 {[%emt 0:03:07]} 27. Nxb4 {[%emt 0:00:24]} Bc3 {[%emt 0:00:11]} 28. Bxh7+ {[%emt 0:04:57]} Kxh7 {[%emt 0:00:43]} 29. Qc2+ {[%emt 0:00:04]} Kg8 {[%emt 0:00:26]} 30. Qxc3 {[%emt 0:00:03]} Qxc5 31. Rd4 {[%emt 0:02:42]} e5 {[%emt 0:03:26]} 32. Rd2 {[%emt 0:04:54]} exf4 {[%emt 0:00:19]} 0-1